bitfinex-derivatives/quotes_ETHF0:USTF0_20250917
["timestamp","ask_amount","ask_price","bid_price","bid_amount"]
[1758070269510,0.4146,4511.9,4511.8,1.18035218]
[1758070269905,0.7285,4511.9,4511.8,1.18035218]
[1758070271015,0.7285,4511.9,4511.8,1.47245218]
[1758070272412,0.223,4512.2,4512.0,0.395]
[1758070272608,0.223,4512.2,4512.1,1.47245218]
[1758070272609,0.424,4512.2,4512.1,1.47245218]
[1758070272808,0.201,4512.2,4512.1,1.47245218]
[1758070273112,0.5149,4512.2,4512.1,1.47245218]
[1758070273615,0.7285,4512.2,4512.1,1.18035218]
[1758070274811,0.7285,4512.2,4512.1,0.78535218]
[1758070275614,0.7285,4511.9,4511.8,0.97975218]
[1758070276315,0.4146,4511.9,4511.5,0.78535218]
[1758070276517,0.7285,4511.6,4511.5,0.78535218]
[1758070277515,0.4146,4511.6,4511.5,0.78535218]
[1758070277721,0.4146,4511.6,4511.0,0.02216828]
[1758070277722,0.7285,4511.3,4511.2,0.78535218]
[1758070281019,1.51385218,4511.3,4511.0,0.02216828]
[1758070282823,0.7285,4511.3,4511.0,0.02216828]
[1758070291433,0.722,4511.1,4511.0,0.02216828]
[1758070294732,0.945,4511.1,4511.0,0.02216828]
[1758070299329,0.1235,4510.0,4509.9,0.3008]
[1758070299632,0.8455,4510.0,4509.9,1.49235218]
[1758070300024,0.6359,4510.0,4509.9,1.49235218]
[1758070300224,0.3022,4510.4,4509.9,1.19155218]
[1758070300437,0.8455,4510.5,4510.4,0.2067]
[1758070302325,0.5433,4510.5,4510.3,0.78535218]
[1758070302531,0.722,4510.4,4510.3,0.78535218]
[1758070303030,0.1235,4510.0,4509.2,2.277]
[1758070303235,0.5433,4510.0,4509.9,0.99205218]
[1758070303632,0.8455,4510.0,4509.9,0.99205218]
[1758070305036,0.8455,4510.0,4509.9,1.49235218]
[1758070305233,0.6359,4510.0,4509.9,1.49235218]
[1758070305740,0.6359,4510.0,4509.9,1.65087174]
[1758070306041,0.8455,4510.0,4509.9,1.65087174]
[1758070309143,0.6359,4510.0,4509.9,1.65087174]
[1758070309439,0.5433,4510.5,4510.4,0.4062]
[1758070309740,0.5433,4510.5,4510.4,1.65087174]
[1758070310139,0.8455,4510.5,4510.4,1.65087174]
[1758070310635,0.8455,4510.5,4510.4,1.35007174]
[1758070312845,0.8455,4510.5,4510.4,1.65087174]
[1758070314353,0.3022,4510.5,4510.4,1.65087174]
[1758070315453,0.5121,4510.5,4510.4,1.65087174]
[1758070317256,0.6318,4510.5,4510.4,1.65087174]
[1758070320859,1.07017174,4511.5,4510.6,0.3006]
[1758070320860,0.223,4511.2,4510.6,0.3006]
[1758070321058,0.5179,4511.2,4511.1,1.64587174]
[1758070321258,0.7241,4511.2,4511.1,1.64587174]
[1758070321555,1.26352346,4511.2,4511.1,1.64587174]
[1758070322553,0.53942346,4511.2,4511.1,1.64587174]
[1758070323054,0.83432346,4511.2,4511.1,1.64587174]
[1758070323560,1.04052346,4511.2,4511.1,1.64587174]
[1758070323759,1.24162346,4511.2,4510.1,2.277]
[1758070323956,0.8262,4510.5,4510.4,0.1955]
[1758070324259,0.8262,4510.5,4510.1,2.277]
[1758070324459,0.2949,4510.4,4510.1,2.277]
[1758070324663,0.7022,4510.2,4510.1,2.6784]
[1758070324962,0.7022,4510.2,4510.1,0.4014]
[1758070327863,0.4073,4510.2,4510.1,0.1955]
[1758070328365,0.7022,4510.2,4510.1,0.1955]
[1758070332068,0.7022,4509.9,4509.8,1.13937174]
[1758070332259,0.7022,4509.9,4509.8,0.94387174]
[1758070332564,0.7022,4509.9,4509.8,1.13937174]
[1758070332866,0.2949,4510.4,4509.8,1.34527174]
[1758070333167,0.5011,4510.3,4510.2,1.64587174]
[1758070334764,0.7022,4510.3,4510.2,1.34527174]
[1758070334964,0.4073,4510.3,4509.9,0.94387174]
[1758070335266,0.8262,4510.0,4509.9,1.64587174]
[1758070335663,1.01734558,4510.0,4509.9,1.64587174]
[1758070336870,0.81624558,4510.0,4509.9,1.64587174]
[1758070338268,0.69224558,4510.0,4509.9,1.64587174]
[1758070340868,0.48604558,4510.0,4509.9,1.64587174]
[1758070343066,0.19114558,4510.0,4509.9,1.86760173]
[1758070343270,0.124,4510.5,4510.0,0.093]
[1758070343477,0.124,4510.5,4510.3,0.702]
[1758070343478,0.19113845,4510.4,4510.3,0.702]
[1758070343769,0.39733845,4510.4,4510.3,0.702]
[1758070343971,0.69223845,4510.4,4510.3,0.702]
[1758070344570,0.69223845,4510.4,4510.3,1.64587174]
[1758070347276,0.48603845,4510.4,4510.3,1.64587174]
[1758070347476,0.19113845,4510.4,4510.3,1.64587174]
[1758070347777,0.19113845,4510.4,4510.3,0.702]
[1758070348078,0.19113845,4510.4,4510.3,1.64587174]
[1758070351676,0.48273845,4510.4,4510.3,1.64587174]
[1758070352982,0.89363845,4510.4,4510.3,1.34527174]
[1758070353677,0.89363845,4510.4,4510.3,1.13937174]
[1758070353981,0.2916,4510.3,4510.0,0.94387174]
[1758070354174,0.7025,4510.1,4510.0,0.94387174]
[1758070354368,0.89363845,4510.1,4510.0,0.94387174]
[1758070354978,0.89363845,4510.1,4510.0,1.14067174]
[1758070355177,0.89363845,4510.1,4510.0,1.33797174]
[1758070355781,0.89363845,4510.1,4510.0,0.3941]
[1758070355971,0.89366086,4510.1,4510.0,1.33797174]
[1758070356170,0.89366086,4510.1,4510.0,1.63827174]
[1758070360188,0.19116086,4510.1,4510.0,1.63827174]
[1758070361282,0.48276086,4510.1,4510.0,1.63827174]
[1758070365690,0.2916,4510.1,4510.0,1.63827174]
[1758070365889,0.2916,4510.1,4510.0,1.48077241]
[1758070367990,0.3316,4510.5,4510.4,0.3941]
[1758070368190,0.3316,4510.5,4510.4,1.48077241]
[1758070368490,0.6232,4510.5,4510.4,1.48077241]
[1758070369380,0.8241,4510.5,4510.4,1.18047241]
[1758070369586,0.8241,4510.5,4510.4,0.98317241]
[1758070371291,0.8241,4510.5,4510.1,0.0169]
[1758070371589,0.8241,4510.5,4510.4,0.78637241]
[1758070371790,0.8241,4510.5,4510.4,0.98317241]
[1758070371991,0.8241,4510.5,4510.4,1.18047241]
[1758070372393,0.8241,4510.5,4510.4,1.48077241]
[1758070372894,0.6232,4510.5,4510.4,1.48077241]
[1758070373691,0.5016,4510.5,4510.4,1.48077241]
[1758070374596,0.2916,4510.5,4510.4,1.48077241]
[1758070377595,0.4947,4510.5,4510.4,1.48077241]
[1758070377893,0.6131,4510.5,4510.4,1.48077241]
[1758070378494,0.2916,4510.5,4510.4,1.48077241]
[1758070378792,0.3124,4510.9,4510.8,0.7148]
[1758070379093,0.5151,4511.4,4511.3,0.7148]
[1758070379291,1.06191156,4511.4,4511.3,1.50117241]
[1758070379697,0.5151,4511.4,4511.3,1.50117241]
[1758070380391,0.3124,4511.4,4511.3,1.50117241]
[1758070380792,0.5151,4511.4,4511.3,1.50117241]
[1758070382500,0.7303,4511.4,4511.3,1.50117241]
[1758070382894,0.5151,4511.4,4511.3,1.50117241]
[1758070384197,0.7303,4511.4,4511.3,1.20037241]
[1758070384903,0.7303,4511.4,4511.3,1.50117241]
[1758070385102,0.124,4512.0,4511.3,1.50117241]
[1758070385307,0.3124,4511.9,4511.4,0.3008]
[1758070385595,0.3124,4511.9,4511.8,0.7148]
[1758070385803,0.223,4512.3,4511.9,0.3008]
[1758070386004,0.4257,4512.3,4512.2,0.7148]
[1758070386501,0.7303,4512.3,4512.2,1.20037241]
[1758070390102,0.7303,4512.3,4512.2,0.99147241]
[1758070390397,0.7303,4512.3,4512.2,0.78637241]
[1758070391112,0.7303,4512.3,4512.2,0.99147241]
[1758070391698,0.7303,4512.3,4512.2,1.20037241]
[1758070391899,0.5151,4512.3,4512.2,1.50117241]
[1758070392094,0.7303,4512.3,4512.2,1.20037241]
[1758070393703,0.7303,4512.3,4512.2,0.414]
[1758070396109,0.7303,4512.3,4512.2,0.7148]
[1758070397707,0.3124,4512.3,4512.2,0.7148]
[1758070397907,0.5151,4512.3,4512.2,0.7148]
[1758070398111,0.7303,4512.3,4512.2,0.7148]
[1758070398311,0.7303,4512.3,4512.2,0.414]
[1758070399207,0.7303,4512.3,4512.2,0.7148]
[1758070400713,0.7303,4512.3,4512.2,0.414]
[1758070404316,0.7303,4512.3,4512.2,1.20037241]
[1758070406516,0.7303,4512.3,4512.2,1.50117241]
[1758070407019,0.7303,4512.3,4512.2,1.20037241]
[1758070408229,0.3124,4512.3,4512.2,1.50137241]
[1758070409728,0.5142,4512.3,4512.2,1.50137241]
[1758070411534,0.7181,4512.3,4512.2,1.50137241]
[1758070412031,0.7181,4512.3,4512.2,0.715]
[1758070414132,1.26273133,4512.3,4512.2,0.715]
[1758070414629,0.7181,4512.3,4512.2,0.715]
[1758070414834,1.26273132,4512.3,4512.2,0.715]
[1758070415331,1.26273132,4512.3,4512.2,0.414]
[1758070421932,0.7181,4512.3,4512.2,0.414]
[1758070424435,0.3124,4512.3,4512.2,0.715]
[1758070425240,0.7181,4512.3,4512.2,0.414]
[1758070426439,0.7181,4512.3,4512.2,0.715]
[1758070427940,0.7181,4512.3,4512.2,1.65780938]
[1758070433039,0.5142,4512.3,4512.2,1.65780938]
[1758070435945,0.297,4512.9,4512.3,0.3007]
[1758070436150,0.5072,4513.4,4513.3,0.714]
[1758070436345,0.5072,4513.4,4513.3,1.65680938]
[1758070440755,0.7051,4513.4,4513.3,1.35610938]
[1758070441257,0.7051,4513.4,4513.3,1.65660938]
[1758070442358,0.7051,4513.4,4513.3,1.35610938]
[1758070444354,0.7051,4513.4,4513.3,1.65660938]
[1758070445453,0.7051,4513.4,4513.3,1.35610938]
[1758070445654,4.92666,4513.4,4513.1,0.0221]
[1758070445855,0.22157,4513.3,4513.1,0.0221]
[1758070446060,0.7234,4513.2,4513.1,0.0221]
[1758070446558,0.1191,4513.0,4512.5,0.94280938]
[1758070446763,0.7234,4512.6,4512.5,0.94280938]
[1758070447463,0.7234,4512.6,4512.5,1.14980938]
[1758070448460,0.7234,4512.6,4512.5,0.94280938]
[1758070449954,0.7234,4512.6,4512.5,1.14980938]
[1758070450360,0.7234,4512.6,4512.5,1.36010938]
[1758070451863,0.7234,4512.6,4512.5,1.36010938]
[1758070453563,0.7234,4512.6,4512.5,0.4173]
[1758070453758,0.7234,4512.6,4512.5,1.36010938]
[1758070459461,0.7234,4512.6,4512.5,1.66060938]
[1758070459662,0.1191,4513.0,4512.5,1.66060938]
[1758070459663,0.1191,4513.0,4512.6,0.3005]
[1758070459861,0.3287,4513.0,4512.9,1.66060938]
[1758070460062,0.1164,4513.5,4512.9,1.66060938]
[1758070460361,0.3125,4513.5,4513.4,1.66060938]
[1758070460763,0.5221,4513.5,4513.4,1.66060938]
[1758070461370,0.3125,4513.5,4513.4,1.66060938]
[1758070461667,0.326,4514.0,4513.9,0.4173]
[1758070461869,1.07022082,4514.0,4513.9,0.4173]
[1758070462065,1.38272082,4514.0,4513.9,0.4173]
[1758070463066,0.3125,4514.0,4513.9,1.66060938]
[1758070465761,0.5221,4514.0,4513.9,1.66060938]
[1758070466166,0.3125,4514.0,4513.9,1.66060938]
[1758070466563,0.1191,4515.0,4513.9,1.66060938]
[1758070466564,0.1191,4515.0,4514.3,0.4173]
[1758070466767,0.8425,4515.0,4514.9,1.14980938]
[1758070466969,1.38512585,4515.0,4514.9,1.14980938]
[1758070467167,1.38512585,4515.0,4514.9,0.94280938]
[1758070468072,1.38512585,4515.0,4514.9,1.14980938]
[1758070469170,1.38512585,4515.0,4514.9,1.65440938]
[1758070469572,1.38512585,4515.0,4514.9,1.35580938]
[1758070470464,0.3125,4515.0,4514.9,1.65440938]
[1758070472075,0.6369,4515.0,4514.9,1.65440938]
[1758070478181,0.312,4515.4,4515.3,0.4013]
[1758070478471,0.5191,4515.9,4515.8,0.4013]
[1758070478675,0.5191,4515.9,4515.8,1.34410938]
[1758070478880,0.5191,4515.9,4515.8,1.64270938]
[1758070479082,0.7226,4515.9,4515.8,1.64270938]
[1758070479274,0.7226,4515.9,4515.8,1.34410938]
[1758070480076,0.7226,4515.9,4515.8,1.64270938]
[1758070481484,0.7226,4515.9,4515.8,1.34410938]
[1758070484080,0.7226,4515.9,4515.8,1.64270938]
[1758070485376,0.312,4515.9,4515.8,1.64270938]
[1758070485682,0.334,4516.0,4515.9,0.6999]
[1758070486377,0.5411,4516.0,4515.9,0.6999]
[1758070487780,0.6584,4516.0,4515.9,0.6999]
[1758070488981,0.8619,4516.0,4515.9,0.6999]
[1758070489785,0.8619,4516.0,4515.9,1.48435712]
[1758070491292,0.8619,4516.0,4515.9,1.18575712]
[1758070497187,0.1255,4515.5,4515.4,0.1955]
[1758070497391,0.4174,4515.4,4515.3,0.78445712]
[1758070497583,0.7218,4515.4,4515.3,0.78445712]
[1758070498484,0.3041,4515.3,4515.2,2.277]
[1758070498686,0.7019,4515.3,4515.2,2.277]
[1758070499583,0.3041,4515.2,4514.4,0.3003]
[1758070499794,0.629,4514.5,4514.4,0.9457]
[1758070500387,0.8278,4514.5,4514.4,0.4224]
[1758070500995,0.8278,4514.5,4514.4,1.20685712]
[1758070501893,0.8278,4514.5,4514.4,1.50715712]
[1758070502393,0.8278,4514.5,4514.4,0.78445712]
[1758070502696,0.8278,4514.5,4514.4,0.99875712]
[1758070504199,0.8278,4514.5,4514.2,0.0221]
[1758070505394,0.8278,4514.5,4514.4,0.99875712]
[1758070505586,0.3041,4514.5,4514.4,1.50715712]
[1758070505990,0.5031,4514.5,4514.4,1.50715712]
[1758070506189,0.3041,4514.5,4514.4,1.50715712]
[1758070506391,0.3041,4514.9,4514.5,0.3003]
[1758070506690,0.7019,4514.9,4514.8,1.50715712]
[1758070507091,0.3041,4515.4,4515.3,0.5084]
[1758070507292,0.3041,4515.4,4515.3,1.50715712]
[1758070507588,0.3041,4515.9,4515.3,1.20685712]
[1758070507790,0.3041,4515.9,4515.8,1.50715712]
[1758070508091,0.022,4516.0,4515.9,0.3003]
[1758070508300,0.022,4516.0,4515.9,0.7227]
[1758070508793,0.651,4516.0,4515.9,0.7227]
[1758070509105,0.8498,4516.0,4515.9,0.4224]
[1758070509789,0.8498,4516.0,4514.9,0.223]
[1758070509790,0.8498,4516.0,4515.1,0.3003]
[1758070510098,0.8278,4515.5,4515.4,0.78445712]
[1758070510692,0.1259,4515.0,4514.9,0.2143]
[1758070510886,0.8278,4515.0,4514.9,0.99875712]
[1758070512396,0.629,4515.0,4514.9,1.50715712]
[1758070512596,0.5031,4515.0,4514.9,1.50715712]
[1758070514797,0.629,4515.0,4514.9,1.50715712]
[1758070518599,0.3041,4515.4,4515.3,0.7227]
[1758070518799,0.7019,4515.4,4515.3,0.78445712]
[1758070518996,0.6288,4515.0,4514.9,0.4224]
[1758070519196,0.3041,4515.0,4514.9,1.50715712]
[1758070519599,0.3041,4515.4,4514.9,1.20685712]
[1758070519795,0.5237,4515.5,4515.4,0.2143]
[1758070520004,0.5237,4515.5,4515.4,0.7227]
[1758070520298,0.8278,4515.5,4515.4,0.4224]
[1758070520603,0.8278,4515.5,4515.4,0.2143]
[1758070521702,0.3041,4515.4,4515.3,0.78445712]
[1758070521903,0.7019,4515.4,4515.3,0.78445712]
[1758070522098,0.7019,4515.4,4513.5,2.87833968]
[1758070522099,0.1259,4514.5,4514.3,2.5773]
[1758070522305,0.629,4514.5,4514.4,1.50715712]
[1758070523199,0.8278,4514.5,4514.4,1.20685712]
[1758070523400,0.8278,4514.5,4514.1,0.78445712]
[1758070524115,0.8278,4514.5,4514.4,0.78445712]
[1758070528608,0.8278,4514.5,4514.4,0.99875712]
[1758070535806,0.8278,4514.5,4514.4,0.78445712]
[1758070536001,0.8278,4514.5,4514.4,0.99345712]
[1758070537112,0.8278,4514.5,4514.4,1.19075712]
[1758070537611,0.8278,4514.5,4514.4,0.4063]
[1758070537912,0.8278,4514.5,4514.4,1.19075712]
[1758070540512,0.8278,4514.5,4514.4,1.48715712]
[1758070541712,0.8278,4514.5,4514.4,1.19075712]
[1758070541904,0.8278,4514.5,4514.4,0.78445712]
[1758070542412,0.8278,4514.5,4514.4,0.99345712]
[1758070542608,0.8278,4514.5,4514.4,1.19075712]
[1758070542814,0.8278,4514.5,4514.4,1.48715712]
[1758070543310,0.629,4514.5,4514.4,1.48715712]
[1758070543613,0.5031,4514.5,4514.4,1.48715712]
[1758070547509,0.3066,4514.9,4514.4,1.19075712]
[1758070547715,0.3066,4515.4,4515.3,0.7027]
[1758070548017,31.903,4516.1,4515.8,0.4063]
[1758070548018,0.3066,4515.9,4515.8,0.4063]
[1758070548220,0.3066,4515.9,4515.8,1.19075712]
[1758070548421,0.3066,4515.9,4515.8,1.48715712]
[1758070549317,0.5152,4515.9,4515.8,1.48715712]
[1758070549718,0.5152,4515.9,4515.8,1.64411779]
[1758070550412,0.7168,4515.9,4515.8,1.34771779]
[1758070550617,0.7168,4515.9,4515.8,0.94141779]
[1758070550825,0.7168,4515.9,4515.8,1.15041779]
[1758070551521,0.7168,4515.9,4515.6,0.0221]
[1758070552018,0.54138416,4515.8,4515.6,0.0221]
[1758070552220,1.25818416,4515.7,4515.6,0.0221]
[1758070554222,0.7037,4515.2,4515.1,0.94141779]
[1758070554626,0.7037,4515.2,4515.1,1.15581779]
[1758070554827,0.7037,4515.2,4515.1,1.36121779]
[1758070555021,0.7037,4515.2,4515.1,1.66101779]
[1758070559520,0.1183,4515.5,4515.1,1.66101779]
[1758070559521,0.1183,4515.5,4515.1,1.36121779]
[1758070559723,0.621,4515.5,4515.4,1.64061779]
[1758070560228,0.8293,4515.5,4515.4,1.64061779]
[1758070566130,0.8293,4515.5,4515.1,1.13991779]
[1758070566131,0.4176,4515.2,4515.1,1.13991779]
[1758070566335,0.711,4515.2,4515.1,0.1985]
[1758070566637,0.5027,4514.6,4514.5,1.64061779]
[1758070567139,0.711,4514.6,4514.5,1.64061779]
[1758070567433,0.711,4514.6,4514.5,1.34051779]
[1758070568228,0.1256,4515.0,4514.5,1.34051779]
[1758070568436,0.6919,4515.5,4515.0,0.3001]
[1758070568733,0.2093,4515.1,4515.0,0.6992]
[1758070568934,0.5027,4515.1,4515.0,0.6992]
[1758070573232,0.711,4515.1,4515.0,0.3991]
[1758070574629,0.711,4515.1,4515.0,0.6992]
[1758070576538,0.5027,4515.1,4515.0,0.6992]
[1758070578530,0.5027,4515.1,4515.0,1.64061779]
[1758070579831,0.1183,4515.5,4515.0,1.64061779]
[1758070580035,0.8513,4516.0,4515.9,0.1985]
[1758070580236,1.39326839,4516.0,4515.9,1.34051779]
[1758070581135,1.39326839,4516.0,4515.9,1.64061779]
[1758070582838,1.39326839,4516.0,4515.9,0.3991]
[1758070586039,1.39314573,4516.0,4515.9,0.3991]
[1758070588351,1.39314573,4516.0,4515.9,0.1985]
[1758070596248,1.09974573,4516.0,4515.8,0.94141779]
[1758070596449,1.26044573,4515.9,4515.8,0.94141779]
[1758070598650,1.26044573,4515.9,4515.8,1.14451779]
[1758070600454,1.06074573,4515.9,4515.8,1.64581779]
[1758070600756,0.3146,4515.9,4515.8,1.64581779]
[1758070601249,0.5189,4515.9,4515.8,1.64581779]
[1758070602151,1.06045476,4515.9,4515.8,1.64581779]
[1758070608955,1.06063557,4515.9,4515.8,1.64581779]
[1758070609852,1.06063557,4515.9,4515.8,1.48878528]
[1758070610053,0.85633557,4515.9,4515.8,1.48878528]
[1758070610958,0.022,4516.0,4515.9,0.7044]
[1758070615971,0.3185,4516.0,4515.9,0.7044]
[1758070617263,0.6608,4516.0,4515.9,0.7044]
[1758070618567,0.6608,4516.0,4515.9,2.9814]
[1758070619662,0.6608,4516.0,4515.9,3.2044]
[1758070620768,0.3185,4516.0,4515.9,3.2044]
[1758070623170,0.5129,4516.0,4515.9,3.2044]
[1758070623667,0.6303,4516.0,4515.9,3.2044]
[1758070624368,0.5129,4516.0,4515.9,3.2044]
[1758070624862,0.1183,4516.5,4515.9,0.9274]
[1758070625067,0.2961,4516.4,4516.3,0.6988]
[1758070626173,0.2961,4516.4,4516.3,2.26757056]
[1758070626663,0.2961,4516.4,4516.3,1.48318528]
[1758070626858,0.4905,4516.4,4516.3,1.48318528]
[1758070627068,0.6883,4516.4,4516.3,1.18298528]
[1758070627966,0.6883,4516.4,4516.3,1.70618528]
[1758070628176,0.32,4517.5,4517.4,0.1969]
[1758070628473,0.5178,4517.5,4517.4,0.98128528]
[1758070628769,0.8139,4517.5,4517.4,0.98128528]
[1758070629171,0.8139,4517.5,4517.4,0.1969]
[1758070629371,0.8139,4517.5,4517.4,0.98128528]
[1758070629763,0.8139,4517.5,4517.4,0.78438528]
[1758070631371,0.8139,4517.5,4517.4,0.98128528]
[1758070632168,1.35470366,4517.5,4517.4,0.98128528]
[1758070633473,1.35470366,4517.5,4517.4,0.1969]
[1758070633677,1.35470366,4517.5,4517.4,0.98128528]
[1758070640878,1.35470366,4517.5,4517.4,0.1969]
[1758070641080,1.35470366,4517.5,4517.4,1.18298528]
[1758070641881,1.35470366,4517.5,4517.4,0.78438528]
[1758070647078,1.35470366,4517.5,4517.4,0.98128528]
[1758070648090,1.35470366,4517.5,4517.4,1.48318528]
[1758070648779,0.8139,4517.5,4517.4,1.48318528]
[1758070649180,0.2961,4517.5,4517.4,1.48318528]
[1758070649579,0.511,4517.5,4517.4,1.48318528]
[1758070651175,0.8393,4517.5,4517.4,1.48318528]
[1758070651381,0.8393,4517.5,4517.4,1.18298528]
[1758070652187,0.8393,4517.5,4517.4,1.48298528]
[1758070655086,0.8393,4517.5,4517.4,1.18298528]
[1758070655574,0.8393,4517.5,4517.4,0.98128528]
[1758070656180,0.8393,4517.5,4517.4,1.17888528]
[1758070656786,0.8393,4517.5,4517.4,1.47888528]
[1758070657177,0.8393,4517.5,4517.4,1.17888528]
[1758070657784,0.8393,4517.5,4517.4,0.98128528]
[1758070662094,0.8393,4517.5,4517.2,0.2441]
[1758070662293,0.8393,4517.5,4517.4,0.78438528]
[1758070666884,6.38598281,4517.5,4517.2,0.0221]
[1758070667187,0.7456,4516.2,4516.1,0.3973]
[1758070668390,0.7456,4516.2,4516.1,1.50018528]
[1758070668787,0.3214,4516.2,4516.1,1.50018528]
[1758070668993,0.3214,4516.2,4516.1,2.28457056]
[1758070669290,0.7456,4516.2,4516.1,1.40368528]
[1758070670789,0.7456,4516.2,4516.1,1.72218528]
[1758070671186,0.7456,4516.2,4516.1,1.40368528]
[1758070671894,0.7456,4516.2,4516.1,1.87896044]
[1758070672885,0.5432,4517.0,4516.9,0.1997]
[1758070673092,0.5432,4517.0,4516.9,1.14086044]
[1758070673093,1.08366368,4517.0,4516.9,1.14086044]
[1758070673490,1.40506368,4517.0,4516.9,1.14086044]
[1758070676898,0.86186368,4517.0,4516.9,1.65766044]
[1758070677099,0.8521,4517.0,4516.9,1.65766044]
[1758070677300,0.8521,4517.0,4516.9,1.33846044]
[1758070678197,0.8521,4517.0,4516.9,1.14086044]
[1758070679200,1.39236907,4517.0,4516.9,1.14086044]
[1758070679894,1.39236907,4517.0,4516.9,0.94116044]
[1758070680101,0.5186,4516.4,4516.3,0.9124]
[1758070680299,0.5186,4516.4,4516.3,1.85356044]
[1758070680703,0.715,4516.4,4516.3,1.56286044]
[1758070680896,0.715,4516.4,4516.3,1.34086044]
[1758070681901,0.715,4516.4,4516.2,2.277]
[1758070682091,0.715,4516.4,4516.3,0.94116044]
[1758070682292,0.715,4516.4,4515.5,0.1972]
[1758070682293,0.3989,4515.6,4515.5,0.1972]
[1758070682488,0.3989,4515.6,4515.5,1.13836044]
[1758070682898,0.715,4515.6,4515.5,1.13836044]
[1758070683597,0.715,4515.6,4515.3,0.222]
[1758070683793,0.715,4515.6,4515.5,0.94116044]
[1758070684995,0.715,4515.6,4515.5,1.13836044]
[1758070685300,0.715,4515.6,4515.5,1.63156044]
[1758070685691,0.1199,4516.0,4515.5,1.63156044]
[1758070685896,0.6385,4516.0,4515.9,1.63156044]
[1758070687500,0.8349,4516.0,4515.9,1.34086044]
[1758070687697,0.8349,4516.0,4515.9,0.94116044]
[1758070688493,0.8349,4516.0,4515.9,1.63156044]
[1758070689503,0.5186,4516.0,4515.9,1.63156044]
[1758070690005,0.8349,4516.0,4515.9,1.34086044]
[1758070690594,0.8349,4516.0,4515.9,1.63156044]
[1758070693806,0.8349,4516.0,4515.9,1.34086044]
[1758070694106,0.3161,4515.9,4515.7,0.94116044]
[1758070694407,0.715,4515.8,4515.7,1.13836044]
[1758070695013,0.715,4515.8,4515.7,1.34086044]
[1758070696001,0.5186,4516.4,4516.3,0.3997]
[1758070696204,0.5186,4516.4,4516.3,1.63156044]
[1758070699105,0.715,4516.4,4516.3,1.63156044]
[1758070699509,0.715,4516.4,4516.3,1.34086044]
[1758070700412,0.715,4516.4,4516.3,1.63156044]
[1758070700911,0.715,4516.4,4516.3,1.34086044]
[1758070701314,0.715,4516.4,4516.3,1.63156044]
[1758070702404,0.3989,4516.4,4515.2,0.2907]
[1758070702605,0.715,4514.9,4514.8,0.1972]
[1758070702810,0.715,4514.8,4514.7,1.13836044]
[1758070703110,0.715,4514.8,4514.3,0.94116044]
[1758070703309,0.8349,4514.5,4514.4,0.1972]
[1758070705608,0.8349,4514.5,4514.1,0.94116044]
[1758070705609,0.3161,4514.3,4514.1,0.94116044]
[1758070705810,0.715,4514.2,4514.1,0.94116044]
[1758070706007,0.715,4514.2,4514.1,1.13836044]
[1758070707315,0.715,4514.2,4514.1,1.63156044]
[1758070708117,0.3161,4514.2,4514.1,1.63156044]
[1758070708310,0.3021,4514.4,4514.1,0.94116044]
[1758070708614,0.3021,4514.4,4514.3,0.7171]
[1758070710120,0.7181,4514.4,4514.3,0.4244]
[1758070710622,0.3021,4514.9,4514.3,0.7171]
[1758070710819,0.7181,4514.9,4514.8,1.15356044]
[1758070711023,0.7181,4514.9,4514.8,0.94116044]
[1758070712222,0.1221,4514.5,4514.4,0.94116044]
[1758070712414,0.1221,4514.5,4513.8,0.5157]
[1758070712614,0.1221,4514.5,4513.8,0.9401]
[1758070712615,0.5104,4513.9,4513.8,0.9401]
[1758070713721,0.5104,4513.9,4513.8,1.88126044]
[1758070714220,0.7181,4513.9,4513.8,1.88126044]
[1758070714818,0.3021,4514.4,4513.8,1.36556044]
[1758070715013,0.5104,4514.4,4514.3,0.7171]
[1758070716924,0.7181,4514.4,4514.3,0.7171]
[1758070717122,0.7181,4514.4,4514.3,0.4244]
[1758070717822,0.5104,4514.4,4514.3,0.7171]
[1758070719527,0.7181,4514.4,4514.3,0.7171]
[1758070720428,0.5104,4514.4,4514.3,0.7171]
[1758070721117,0.3021,4514.4,4514.3,1.65826044]
[1758070721319,0.1199,4515.0,4514.4,0.2927]
[1758070721528,0.1199,4515.0,4514.9,1.15356044]
[1758070721529,0.5359,4515.0,4514.9,1.15356044]
[1758070722131,0.838,4515.0,4514.9,1.15356044]
[1758070722428,0.838,4515.0,4514.9,0.94116044]
[1758070726429,0.838,4515.0,4514.9,0.2124]
[1758070726631,0.5359,4515.0,4514.8,0.94116044]
[1758070726931,0.416,4514.9,4514.5,0.94116044]
[1758070727131,0.3021,4514.8,4514.5,0.94116044]
[1758070727333,0.7181,4514.6,4514.5,0.94116044]
[1758070730827,0.7181,4514.6,4513.7,2.277]
[1758070731031,0.5104,4513.7,4513.6,2.9941]
[1758070731232,0.3021,4513.7,4513.6,3.93526044]
[1758070731432,0.5381,4514.5,4514.4,0.2124]
[1758070731632,0.8402,4514.5,4514.4,0.2124]
[1758070731833,0.8402,4514.5,4514.4,0.99748112]
[1758070737236,0.8402,4514.5,4514.4,1.20378112]
[1758070745443,1.38097186,4514.5,4514.4,0.99748112]
[1758070745844,1.38097186,4514.5,4514.4,0.78508112]
[1758070747343,0.8402,4514.5,4514.4,1.19728112]
[1758070747538,0.5104,4514.5,4514.4,1.49598112]
[1758070747744,0.6318,4514.5,4514.4,1.49598112]
[1758070747941,0.8318,4514.5,4514.4,1.49598112]
[1758070749853,0.8318,4514.5,4514.4,0.4122]
[1758070750152,0.8318,4514.5,4514.4,1.19728112]
[1758070752453,0.5104,4514.5,4514.4,1.49598112]
[1758070752749,0.3021,4514.5,4514.4,1.49598112]
[1758070755343,0.5145,4514.5,4514.4,1.49598112]
[1758070756151,0.2915,4514.9,4514.4,1.19728112]
[1758070756349,0.2915,4514.9,4514.8,1.49598112]
[1758070756853,0.5039,4514.9,4514.8,1.49598112]
[1758070757056,1.04460869,4514.9,4514.8,1.49598112]
[1758070758952,0.83220869,4514.9,4514.8,1.49598112]